Cogmind - Beta 17.1 --- EXPLORER MODE // 2026.09.09 @ 02:02:09 Player: deadbabe Result: Escaped! Performance ------------- Evolutions (9) 4500 Regions Visited (15) 3000 Robots Destroyed (92) 460 Value Destroyed (3019) 3019 Prototype IDs (30) 600 Alien Tech Used (0) 0 Bonus (6426) 6426 TOTAL SCORE: 18005 Bonus ------- Triggered Max Security 2000 High Alert Combat Kills 98 Follower Combat Kills 28 Hunted by Unchained 500 Entered DSFs 500 Aligned with FarCom 300 Win 3000 Cogmind --------- Core Integrity 1584/1600 Matter 295/300 Energy 214/220 System Corruption 0% Temperature Cool (15) Movement Flying (33) Location To Epsilon Eridani Parts ------- > --- POWER (2) -------- Light Antimatter Reactor Micro Antimatter Reactor > --- PROPULSION (10) -- Field Propulsion Drive Impulse Thruster Array Impulse Thruster Array Impulse Thruster Array Impulse Thruster Array > --- UTILITY (12) ----- Advanced Heat Sink Small Storage Unit Machine Analyzer Enhanced Optical Array Improved Terrain Scan Processor Transport Network Coupler Targeting Computer Improved Transmission Jammer Reaction Control System Improved Heavy Armor Plating Advanced System Shield > --- WEAPON (2) ------- YOLO Cannon > --- INVENTORY (8) ---- Light Antimatter Reactor Improved VTOL Module Xenon Bombardment Thruster Impulse Thruster Power Maul Power Sword Power Sword Peak State ------------ > --- POWER ------------ Light Antimatter Reactor Micro Antimatter Reactor > --- PROPULSION ------- Cesium-ion Thruster Field Propulsion Drive Impulse Thruster Array Impulse Thruster Array Impulse Thruster Array Impulse Thruster Array > --- UTILITY ---------- Advanced Heat Sink Small Storage Unit Machine Analyzer Enhanced Optical Array Improved Terrain Scan Processor Transport Network Coupler Targeting Computer Improved Transmission Jammer Reaction Control System Improved Heavy Armor Plating Advanced System Shield > --- WEAPON ----------- YOLO Cannon > --- INVENTORY -------- Light Antimatter Reactor Improved VTOL Module Xenon Bombardment Thruster Impulse Thruster Power Maul Power Sword Power Sword [Rating: 155] Favorites ----------- Power Light Nuclear Core Engine Improved Deuterium Engine Power Core Light Nuclear Core Reactor Light Antimatter Reactor Propulsion Light Treads Treads Light Treads Flight Unit Improved VTOL Module Utility Signal Interpreter Device Advanced Heat Sink Storage High-capacity Storage Unit Processor Signal Interpreter Hackware Advanced System Shield Protection Hardened Light Armor Plating Weapon Light Assault Rifle Energy Gun Medium Laser Energy Cannon YOLO Cannon Ballistic Gun Light Assault Rifle Impact Weapon Power Maul Slashing Weapon Power Sword Special Melee Weapon Improved Datajack Build | -11 -10 -10 -10 -9 -8 -7 -7 -6 -5 -4 -3 -3 -2 -2 -1 ------- Run | Yrd Mat Min Exi Min Mat Fac DSF Fac Fac Fac Res Tes Res Qua Acc Slots Evolved 19 | . 1 . . . 4 2 . 2 2 2 2 . 2 . 2 Power 1 | . . . . . . . . 1 . . . . . . . Propulsion 8 | . 1 . . . 2 1 . . 1 1 . . . . 2 Utility 10 | . . . . . 2 1 . 1 1 1 2 . 2 . . Weapon . | . . . . . . . . . . . . . . . . Parts Attached 98 | 6 . 3 1 1 22 8 5 12 8 14 9 . 7 . 2 Power 17 | . . 1 . . 4 . . 4 3 2 2 . . . 1 Engine 3 | . . . . . 1 . . 2 . . . . . . . Core 10 | . . 1 . . 3 . . 2 3 1 . . . . . Reactor 4 | . . . . . . . . . . 1 2 . . . 1 Propulsion 39 | 2 . 1 . . 8 5 2 3 2 7 4 . 5 . . Treads 8 | 2 . 1 . . 5 . . . . . . . . . . Leg . | . . . . . . . . . . . . . . . . Wheel . | . . . . . . . . . . . . . . . . Hover . | . . . . . . . . . . . . . . . . Flight 31 | . . . . . 3 5 2 3 2 7 4 . 5 . . Utility 24 | 2 . . 1 . 3 3 1 4 2 3 3 . 2 . . Device 8 | . . . . . . . 1 3 1 . 2 . 1 . . Storage 4 | 1 . . 1 . 1 1 . . . . . . . . . Processor 8 | 1 . . . . 2 1 . 1 1 2 . . . . . Hackware 1 | . . . . . . . . . . . 1 . . . . Protection 3 | . . . . . . 1 . . . 1 . . 1 . . Artifact . | . . . . . . . . . . . . . . . . Weapon 18 | 2 . 1 . 1 7 . 2 1 1 2 . . . . 1 Energy Gun 1 | 1 . . . . . . . . . . . . . . . Energy Cannon 1 | . . . . . . . . . . . . . . . 1 Ballistic Gun 10 | 1 . 1 . 1 7 . . . . . . . . . . Ballistic Cannon . | . . . . . . . . . . . . . . . . Launcher . | . . . . . . . . . . . . . . . . Special Weapon . | . . . . . . . . . . . . . . . . Impact Weapon 1 | . . . . . . . 1 . . . . . . . . Slashing Weapon 4 | . . . . . . . 1 1 . 2 . . . . . Piercing Weapon . | . . . . . . . . . . . . . . . . Special Melee Weapon 1 | . . . . . . . . . 1 . . . . . . Unidentified Prototypes 7 | . . . . . 4 . . . 1 1 1 . . . . Parts Lost 20 | . . . . . 3 . 2 3 4 1 . 6 . . 1 Power 4 | . . . . . 2 . . . 1 1 . . . . . Propulsion 11 | . . . . . 1 . 1 2 1 . . 5 . . 1 Utility 4 | . . . . . . . 1 1 1 . . 1 . . . Weapon 1 | . . . . . . . . . 1 . . . . . . Highest Loss Streak 5 | . . . . . 1 . 1 2 2 1 . 5 . . 1 To Critical Strikes . | . . . . . . . . . . . . . . . . Average Backups 11 | 3 6 9 10 11 18 15 6 6 6 6 6 7 5 7 6 Power 1 | 1 2 1 1 1 1 . . . . . . . . . . Propulsion 4 | 1 2 2 2 3 7 5 2 3 2 3 4 5 3 5 3 Utility 3 | . 1 3 5 5 5 5 1 . . 1 . . . . . Weapon 2 | . 1 1 2 2 3 5 2 2 2 1 2 2 2 2 2 Tool/Special . | . . . . . . . . . . . . . . . . Unused Backups 27 | . . 3 1 . 13 4 1 1 . 3 . . . . 1 Power 2 | . . 1 . . 1 . . . . . . . . . . Propulsion 11 | . . 1 . . 8 . . . . 2 . . . . . Utility 5 | . . 1 . . 1 2 1 . . . . . . . . Weapon 8 | . . . 1 . 3 2 . 1 . . . . . . 1 Tool/Special 1 | . . . . . . . . . . 1 . . . . . Average Slot Usage (%) 92 | . 75 92 100 100 95 89 97 78 85 96 98 95 79 79 79 Core 7 | . . 7 12 12 6 7 7 2 9 7 3 . . . . Treads 26 | . 25 33 37 37 39 14 . . . . . . . . . Flight 9 | . . . . . . 21 42 34 33 39 36 32 21 16 22 Device 1 | . . . . . . . 1 4 8 5 8 9 9 12 11 Storage 9 | . 12 12 12 12 8 10 7 6 5 5 4 4 4 4 3 Processor 16 | . 12 12 12 12 20 21 17 16 17 22 22 22 20 20 19 Ballistic Gun 14 | . 12 22 25 25 15 14 8 . . . . . . . . Slashing Weapon 1 | . . . . . . . 1 6 4 5 4 4 4 4 2 Peak Build Rating 155 | 6 6 11 13 14 34 44 47 56 69 99 120 114 135 135 155 Average Rating 35 | 5 6 9 11 13 29 37 42 49 61 92 110 108 120 135 146 On Entrance 53 | . 6 6 11 13 14 34 44 37 56 66 98 114 87 135 135 Avg Prop Armor Cover (%) 1 | . . . . . . . 1 1 1 1 3 2 2 . . Naked Turns . | . . . . . . . . . . . . . . . . Heaviest Build 61 | 13 13 17 47 49 57 21 21 27 27 38 42 42 53 53 61 Greatest Support 102 | 40 40 60 60 60 102 25 32 28 38 47 50 43 64 64 77 Greatest Overweight (x) 17 | . . . . . 17 . . 1 . . . 1 1 . . Average Overweight (x) . | . . . . . . . . . . . . . . . . Largest Inventory Capacity 20 | 10 10 10 20 20 20 20 8 8 8 8 8 8 8 8 8 Average Capacity 14 | 9 10 10 18 20 20 18 8 8 8 8 8 8 8 8 8 Most Carried 20 | 6 6 10 11 16 20 20 8 8 8 8 8 8 8 8 7 Average Carried 12 | 3 6 9 10 12 19 14 7 7 7 7 7 7 6 8 6 Final Capacity 20 | 10 10 10 20 20 20 8 8 8 8 8 8 8 8 8 8 Final Carried 20 | 6 6 10 11 16 20 7 8 8 8 8 8 6 8 8 7 Class Distribution -------------------- 74% | Hacker-Mutant 12% | Hacker-Sprinter 6% | Hacker-Ninja 6% | Hacker-Scout Dominant Class ---------------- Hacker-Mutant | -10/Materials Hacker-Mutant | -10/Mines Hacker-Mutant | -10/Exiles Hacker-Mutant | -9/Mines Hacker-Mutant | -8/Materials Hacker-Mutant | -7/Factory Hacker-Sprinter | -7/DSF Hacker-Sprinter | -6/Factory Hacker-Sprinter | -5/Factory Hacker-Scout | -4/Factory Hacker-Ninja | -3/Research Hacker-Ninja | -3/Testing Hacker-Ninja | -2/Research Hacker-Ninja | -2/Quarantine Hacker-Ninja | -1/Access Resources | -11 -10 -10 -10 -9 -8 -7 -7 -6 -5 -4 -3 -3 -2 -2 -1 ----------- Run | Yrd Mat Min Exi Min Mat Fac DSF Fac Fac Fac Res Tes Res Qua Acc Matter Collected 2497 | 225 42 39 . 35 1233 . 55 230 143 157 163 . 145 . 30 Remotely . | . . . . . . . . . . . . . . . . Salvage Created 4372 | . 86 104 . 11 1969 . . 730 512 310 132 . 143 . 375 Parts 212 | . 3 6 . 2 98 . . 28 33 20 5 . 4 . 13 Haulers Intercepted 6 | . . . . . 6 . . . . . . . . . . Recyclers Shooed . | . . . . . . . . . . . . . . . . Parts Field Recycled . | . . . . . . . . . . . . . . . . Retrieved Matter . | . . . . . . . . . . . . . . . . Parts Self-Destructed . | . . . . . . . . . . . . . . . . Prevented . | . . . . . . . . . . . . . . . . Parts Restored . | . . . . . . . . . . . . . . . . Kills | -11 -10 -10 -10 -9 -8 -7 -7 -6 -5 -4 -3 -3 -2 -2 -1 ------- Run | Yrd Mat Min Exi Min Mat Fac DSF Fac Fac Fac Res Tes Res Qua Acc Combat Hostiles Destroyed 62 | . 2 2 . 1 27 . . 3 13 9 3 . . . 2 Melee 26 | . . . . . . . . 3 13 7 3 . . . . Guns 32 | . 2 2 . 1 27 . . . . . . . . . . Classes Destroyed 13 | . 1 2 . . 8 . . 1 . . . . . . 1 Worker 4 | . . . . . 3 . . 1 . . . . . . . Hauler 6 | . . . . . 6 . . . . . . . . . . Recycler 10 | . . 2 . . 3 . . 4 . . . . 1 . . Operator 3 | . . . . . 2 . . . 1 . . . . . . Watcher 7 | . . . . . 5 . . . 1 . 1 . . . . Swarmer 25 | . . 2 . 1 4 . . . 9 6 3 . . . . Grunt 19 | . 2 . . . 15 . . 1 . 1 . . . . . Brawler 1 | . . . . . 1 . . . . . . . . . . Duelist 1 | . . . . . 1 . . . . . . . . . . Sentry 6 | . . . . . 5 . . . 1 . . . . . . Hunter 2 | . . . . . 1 . . . 1 . . . . . . Programmer 6 | . . . . . . . . 2 2 2 . . . . . Behemoth 2 | . . . . . . . . . . . . . . . 2 Best Kill Streak 7 | . 2 2 . 1 4 . . 3 7 4 3 . 1 . 2 Combat Bots Only 7 | . 2 2 . 1 3 . . 1 7 4 3 . . . 2 Max Kills in Single Turn 2 | . 1 1 . 1 2 . . 1 1 1 1 . 1 . 1 Gunslinging . | . . . . . . . . . . . . . . . . Exploded . | . . . . . . . . . . . . . . . . Melee 1 | . . . . . . . . 1 1 1 1 . . . . Uniques/NPCs Destroyed . | . . . . . . . . . . . . . . . . Combat | -11 -10 -10 -10 -9 -8 -7 -7 -6 -5 -4 -3 -3 -2 -2 -1 -------- Run | Yrd Mat Min Exi Min Mat Fac DSF Fac Fac Fac Res Tes Res Qua Acc Hostile Shots Fired 565 | . 17 12 . 5 155 . 18 31 95 69 23 60 2 9 69 Missed 243 | . 2 2 . 1 46 . 8 14 38 36 12 35 1 4 44 Hits 322 | . 15 10 . 4 109 . 10 17 57 33 11 25 1 5 25 Melee 7 | . . . . . 5 . 2 . . . . . . . . Projectile 315 | . 15 10 . 4 104 . 8 17 57 33 11 25 1 5 25 AOE 6 | . . . . 3 . . 3 . . . . . . . . Critical Strikes 13 | . . . . . 4 . 4 . 1 2 1 1 . . . Damage Taken 3561 | . 113 55 . 66 1040 . 251 295 573 362 154 313 19 84 236 Core 625 | . 32 7 . . 92 . 42 92 169 74 43 23 19 16 16 Absorbed by Shields 25 | . . . . . . . 25 . . . . . . . . Ignored by Resistances 2286 | . 72 39 . 40 638 . 157 183 465 217 90 187 11 49 138 Regen/Repaired (Parts) 27 | . . . . . . . . 27 . . . . . . . Core Remaining (%) 91 | 100 . . . 84 83 . 94 89 83 93 . 94 . 97 99 Volleys Fired 171 | . 7 6 . 3 149 . . . . . . . . . 6 Largest 2 | . 2 2 . 2 2 . . . . . . . . . 1 Hottest 100 | . 70 70 . 43 53 . . . . . . . . . 100 Shots Fired 336 | . 14 12 . 6 298 . . . . . . . . . 6 Gun 330 | . 14 12 . 6 298 . . . . . . . . . . Cannon 6 | . . . . . . . . . . . . . . . 6 Launcher . | . . . . . . . . . . . . . . . . Special . | . . . . . . . . . . . . . . . . Kinetic 320 | . 7 9 . 6 298 . . . . . . . . . . Thermal 16 | . 7 3 . . . . . . . . . . . . 6 Explosive . | . . . . . . . . . . . . . . . . Electromagnetic . | . . . . . . . . . . . . . . . . Robot Hit Streak 39 | . 12 13 . 2 39 . . . . . . . . . 20 Robot Miss Streak 2 | . 1 2 . 1 2 . . . . . . . . . . Penetration Max 1 | . . . . . 1 . . . . . . . . . . Secondary Targets 8 | . 1 1 . . 6 . . . . . . . . . . Max Gunslinging Chain 1 | . 1 1 . . 1 . . . . . . . . . . Shots Hit Robots 353 | . 12 6 . 3 263 . . 15 24 20 7 . 1 . 2 Core Hits 139 | . 5 3 . 1 95 . . 6 16 7 5 . 1 . . Critical Kills 3 | . . . . . 1 . . . . . . . . . 2 Critical Parts Destroyed 2 | . . . . . . . . . . 2 . . . . . Critical Strikes 15 | . 1 . . . 1 . . 2 4 5 . . . . 2 Burn 1 | . 1 . . . . . . . . . . . . . . Meltdown 2 | . . . . . . . . . . . . . . . 2 Destroy 1 | . . . . . 1 . . . . . . . . . . Smash 2 | . . . . . . . . . . 2 . . . . . Sever 9 | . . . . . . . . 2 4 3 . . . . . Melee Attacks 82 | . . . . . . . 1 15 28 20 9 2 2 . 5 Impact 12 | . . . . . . . . . 2 6 3 . 1 . . Slashing 70 | . . . . . . . 1 15 26 14 6 2 1 . 5 Piercing . | . . . . . . . . . . . . . . . . Sneak Attacks 8 | . . . . . . . . 5 1 1 . . 1 . . Combat Hostiles 2 | . . . . . . . . . 1 1 . . . . . Follow-up Attacks 4 | . . . . . . . . . . 3 1 . . . . Damage Inflicted 7550 | . 124 72 . 38 3784 . . 946 1025 918 291 . 69 . 283 Guns 4015 | . 124 69 . 38 3784 . . . . . . . . . . Cannons 283 | . . . . . . . . . . . . . . . 283 Explosions . | . . . . . . . . . . . . . . . . Melee 3249 | . . . . . . . . 946 1025 918 291 . 69 . . Ramming 3 | . . 3 . . . . . . . . . . . . . Kinetic 3903 | . 49 32 . 38 3784 . . . . . . . . . . Thermal 395 | . 75 37 . . . . . . . . . . . . 283 Explosive . | . . . . . . . . . . . . . . . . Electromagnetic . | . . . . . . . . . . . . . . . . Impact 319 | . . . . . . . . . . 270 49 . . . . Slashing 2930 | . . . . . . . . 946 1025 648 242 . 69 . . Piercing . | . . . . . . . . . . . . . . . . Highest Corruption 2 | . . . . . 1 . . 2 2 . . . . . . Average Corruption 1 | . . . . . 1 . . 1 1 . . . . . . Corruption Purged . | . . . . . . . . . . . . . . . . Corruption Blocked . | . . . . . . . . . . . . . . . . Effects 23 | . . . . . 5 . . 10 8 . . . . . . Message Errors 7 | . . . . . 2 . . 4 1 . . . . . . Matter Fused 5 | . . . . . 1 . . 2 2 . . . . . . Heat Flow Errors 3 | . . . . . . . . 1 2 . . . . . . Energy Discharges 1 | . . . . . . . . . 1 . . . . . . Data Loss (minor) 7 | . . . . . 2 . . 3 2 . . . . . . Overload Shots . | . . . . . . . . . . . . . . . . Overflow Damage 369 | . . . . . . . . 230 22 98 19 . . . . Projectiles . | . . . . . . . . . . . . . . . . Explosions . | . . . . . . . . . . . . . . . . Melee 369 | . . . . . . . . 230 22 98 19 . . . . Knockbacks 2 | . . . . . . . . . . 1 1 . . . . Impact 2 | . . . . . . . . . . 1 1 . . . . Kinetic . | . . . . . . . . . . . . . . . . Secondary . | . . . . . . . . . . . . . . . . Self-Inflicted Damage . | . . . . . . . . . . . . . . . . Shots . | . . . . . . . . . . . . . . . . Rammed . | . . . . . . . . . . . . . . . . Targets Rammed 2 | . . 2 . . . . . . . . . . . . . Kicked . | . . . . . . . . . . . . . . . . Crushed 2 | . . 2 . . . . . . . . . . . . . Highest Temperature 262 | . 117 20 . 6 44 . . 204 262 135 25 4 9 . 4 Average Temperature 37 | . 72 9 . 4 7 . . 66 93 42 10 2 9 . 4 Received Heat Transfer 949 | . 108 6 . . 603 . . 18 45 48 49 54 . 18 . Siege Activations . | . . . . . . . . . . . . . . . . Martial Activations . | . . . . . . . . . . . . . . . . Shielding Activations . | . . . . . . . . . . . . . . . . Robots Disrupted . | . . . . . . . . . . . . . . . . Combat Hostiles . | . . . . . . . . . . . . . . . . Robots Corrupted 2 | . . . . . . . . . . 2 . . . . . Combat Hostiles 2 | . . . . . . . . . . 2 . . . . . Parts Fried . | . . . . . . . . . . . . . . . . Impact Corruptions 4 | . . . . . . . . . . 3 1 . . . . Robots Melted 2 | . . . . . . . . . . . . . . . 2 Combat Hostiles 2 | . . . . . . . . . . . . . . . 2 Parts Melted 4 | . 1 . . . . . . . . . . . . . 3 Heat Transferred 486 | . 296 111 . . . . . . . . . . . . 79 Parts Sabotaged . | . . . . . . . . . . . . . . . . Parts Stolen . | . . . . . . . . . . . . . . . . Parts Stripped . | . . . . . . . . . . . . . . . . Power Chain Reactions . | . . . . . . . . . . . . . . . . Alert | -11 -10 -10 -10 -9 -8 -7 -7 -6 -5 -4 -3 -3 -2 -2 -1 ------- Run | Yrd Mat Min Exi Min Mat Fac DSF Fac Fac Fac Res Tes Res Qua Acc Maximum Alert Level 5 | . . . . . 1 . . . . 1 . 5 4 5 4 Low Security (%) 92 | 100 100 100 . 100 96 100 100 100 100 97 100 1 . . . Level 1 1 | . . . . . 3 . . . . 2 . . . . . Level 2 . | . . . . . . . . . . . . . . 2 . Level 3 4 | . . . . . . . . . . . . . 89 . 91 Level 4 . | . . . . . . . . . . . . . 10 . 8 Level 5 . | . . . . . . . . . . . . . . . . High Security . | . . . . . . . . . . . . . . . . Max Security 1 | . . . . . . . . . . . . 98 . 97 . Peak Influence 1609 | . 35 51 . 60 225 . 15 30 170 229 151 1609 1100 1600 1100 Initial 1100 | . . . . . . . . 1 . 51 36 59 1100 409 1100 Average 99 | . 8 1 . 2 46 . 3 3 73 63 68 1573 1039 1572 1032 Influence Increases 2892 | . 50 116 . 84 1039 . 15 172 567 501 197 64 5 . 82 Destroy 0b10 Robot/C 1320 | . 40 80 . 60 540 . . 60 260 180 60 . . . 40 Destroy 0b10 Robot/NC 150 | . . 10 . . 95 . . 25 10 . 5 . 5 . . Destroy Leader 316 | . 10 20 . 10 162 . . 20 52 30 12 . . . . Allied During Kill 8 | . . 6 . 2 . . . . . . . . . . . Successful Hack 126 | . . . . . 18 . . 22 5 81 . . . . . Disable Machine 32 | . . . . 12 8 . . . . . . . . . 12 Anti-Garrison Action 200 | . . . . . 200 . . . . . . . . . . Destroy Structure 20 | . . . . . 1 . . . . . . 4 . . 15 Partial Spotted 135 | . . . . . . . . 15 30 75 15 . . . . Lose Combat Pursuer 585 | . . . . . 15 . 15 30 210 135 105 60 . . 15 Influence Decreases 5427 | . 50 116 . 84 1039 . 10 177 425 549 148 144 1062 561 1062 Entered New Map 2597 | . . . . . . . . 4 . 91 58 84 927 561 872 Time Decay 2520 | . 50 116 . 64 1009 . . 138 390 348 90 . 135 . 180 Search Patrol Dispatched 100 | . . . . . . . . . . 100 . . . . . Lost Part 180 | . . . . . 30 . 10 25 35 10 . 60 . . 10 Lost Ally 30 | . . . . 20 . . . 10 . . . . . . . Squads Dispatched 14 | . . 1 . . 3 . 1 2 1 2 . . 1 . 3 Investigation 4 | . . 1 . . 1 . . . . . . . . . 2 Extermination 6 | . . . . . . . . 2 1 1 . . 1 . 1 Reinforcement 4 | . . . . . 2 . 1 . . 1 . . . . . Assault . | . . . . . . . . . . . . . . . . Garrison . | . . . . . . . . . . . . . . . . Intercept . | . . . . . . . . . . . . . . . . Searches Triggered 1 | . . . . . . . . . . 1 . . . . . Unchained Authorized 1 | . . . . . . . . . . . . . 1 . . Construction Impeded . | . . . . . . . . . . . . . . . . Haulers Reinforced . | . . . . . . . . . . . . . . . . Active Scanning Responses . | . . . . . . . . . . . . . . . . Cargo Convoy Interrupts . | . . . . . . . . . . . . . . . . Stealth | -11 -10 -10 -10 -9 -8 -7 -7 -6 -5 -4 -3 -3 -2 -2 -1 --------- Run | Yrd Mat Min Exi Min Mat Fac DSF Fac Fac Fac Res Tes Res Qua Acc Distress Signals 4 | . . . . . 3 . . . . . . 1 . . . Communications Jammed 11 | . . . . . . . . . . . . . 3 . 8 Distress Signals 11 | . . . . . . . . . . . . . 3 . 8 Times Spotted 157 | . 2 5 . 4 42 . 5 6 26 24 13 12 2 6 10 Peak Tracking Total 12 | . 2 2 . 3 7 . 4 2 9 10 8 12 2 7 7 Tactical Retreats 25 | . . . . . 1 . 1 1 11 5 3 2 . . 1 Traps | -11 -10 -10 -10 -9 -8 -7 -7 -6 -5 -4 -3 -3 -2 -2 -1 ------- Run | Yrd Mat Min Exi Min Mat Fac DSF Fac Fac Fac Res Tes Res Qua Acc Traps Triggered 11 | . . . . . 3 . 1 2 1 4 . . . . . Indirectly . | . . . . . . . . . . . . . . . . Trap Hack Attempts . | . . . . . . . . . . . . . . . . Triggered . | . . . . . . . . . . . . . . . . Disarmed . | . . . . . . . . . . . . . . . . Reprogrammed . | . . . . . . . . . . . . . . . . Reused . | . . . . . . . . . . . . . . . . Traps Extracted . | . . . . . . . . . . . . . . . . Installed . | . . . . . . . . . . . . . . . . Triggered . | . . . . . . . . . . . . . . . . Most Traps Carried 2 | . . 2 . . . . . . . . . . . . . Machines | -11 -10 -10 -10 -9 -8 -7 -7 -6 -5 -4 -3 -3 -2 -2 -1 ---------- Run | Yrd Mat Min Exi Min Mat Fac DSF Fac Fac Fac Res Tes Res Qua Acc Machines Disabled 8 | . . . . 3 2 . . . . . . . . . 3 Max in Single Turn 1 | . . . . . 1 . . . . . . . . . 1 Garrison Access 2 | . . . . . 1 . . . 1 . . . . . . Machines Repaired . | . . . . . . . . . . . . . . . . Machines Dismantled . | . . . . . . . . . . . . . . . . Machines Sabotaged . | . . . . . . . . . . . . . . . . Overloaded Fab Kills . | . . . . . . . . . . . . . . . . Hacking | -11 -10 -10 -10 -9 -8 -7 -7 -6 -5 -4 -3 -3 -2 -2 -1 --------- Run | Yrd Mat Min Exi Min Mat Fac DSF Fac Fac Fac Res Tes Res Qua Acc Machines Accessed 42 | . . 1 5 . 10 1 . 6 5 9 . . 3 . 2 Terminals 26 | . . . . . 7 1 . 4 2 7 . . 3 . 2 Fabricators 3 | . . . . . . . . 1 1 1 . . . . . Repair Stations 2 | . . . . . 1 . . 1 . . . . . . . Recycling Units . | . . . . . . . . . . . . . . . . Scanalyzers 3 | . . . . . 1 . . . 1 1 . . . . . Garrison Access 2 | . . . . . 1 . . . 1 . . . . . . Total Hacks 153 | . . 1 50 . 40 2 . 19 14 17 . . 5 . 5 Successful 113 | . . 1 50 . 29 1 . 10 10 11 . . . . 1 Failed 40 | . . . . . 11 1 . 9 4 6 . . 5 . 4 Catastrophic 9 | . . . . . . . . . . 2 . . 4 . 3 Database Lockouts . | . . . . . . . . . . . . . . . . Manual 36 | . . . 2 . 16 . . 5 3 4 . . 5 . 1 Terminals 62 | . . . . . 18 2 . 14 5 13 . . 5 . 5 Fabricators 6 | . . . . . . . . 2 2 2 . . . . . Repair Stations 6 | . . . . . 3 . . 3 . . . . . . . Recycling Units . | . . . . . . . . . . . . . . . . Scanalyzers 24 | . . . . . 16 . . . 6 2 . . . . . Garrison Access 4 | . . . . . 3 . . . 1 . . . . . . Terminal Hacks 68 | . . 1 50 . 4 1 . 4 1 6 . . . . 1 Record 52 | . . . 49 . . . . . . 2 . . . . 1 Part Schematic 2 | . . . . . 1 . . 1 . . . . . . . Robot Analysis 1 | . . . . . . . . . 1 . . . . . . Open Door 2 | . . 1 . . . . . . . 1 . . . . . Open DSF 2 | . . . . . . 1 . 1 . . . . . . . Branch Access Points 1 | . . . . . . . . 1 . . . . . . . Scanalyzer Index 1 | . . . . . . . . . . 1 . . . . . Garrison Index 1 | . . . . . . . . 1 . . . . . . . Dispatch Records 1 | . . . . . 1 . . . . . . . . . . Transport Status 1 | . . . . . 1 . . . . . . . . . . Hauler Manifests 2 | . . . . . 1 . . . . 1 . . . . . Registered Components 1 | . . . . . . . . . . 1 . . . . . Proto ID Catalog 1 | . . . 1 . . . . . . . . . . . . Fabricator Hacks 6 | . . . . . . . . 2 2 2 . . . . . Load Schematic 3 | . . . . . . . . 1 1 1 . . . . . Build 3 | . . . . . . . . 1 1 1 . . . . . Repair Station Hacks 5 | . . . . . 2 . . 3 . . . . . . . Scan Component 2 | . . . . . 1 . . 1 . . . . . . . Repair 2 | . . . . . 1 . . 1 . . . . . . . Refit 1 | . . . . . . . . 1 . . . . . . . Recycling Unit Hacks . | . . . . . . . . . . . . . . . . Scanalyzer 24 | . . . . . 16 . . . 6 2 . . . . . Insert Component 11 | . . . . . 7 . . . 3 1 . . . . . Analyze 11 | . . . . . 7 . . . 3 1 . . . . . Retrieve Study 2 | . . . . . 2 . . . . . . . . . . Garrison Access Hacks 1 | . . . . . . . . . 1 . . . . . . Seal Access 1 | . . . . . . . . . 1 . . . . . . Unauthorized Hacks 9 | . . . . . 7 . . 1 . 1 . . . . . Terminals 8 | . . . . . 6 . . 1 . 1 . . . . . Assimilate 1 | . . . . . . . . . . 1 . . . . . Botnet 6 | . . . . . 5 . . 1 . . . . . . . Skim 1 | . . . . . 1 . . . . . . . . . . Fabricators . | . . . . . . . . . . . . . . . . Repair Stations . | . . . . . . . . . . . . . . . . Recycling Units . | . . . . . . . . . . . . . . . . Scanalyzers . | . . . . . . . . . . . . . . . . Garrison Access 1 | . . . . . 1 . . . . . . . . . . Jam 1 | . . . . . 1 . . . . . . . . . . Data Cores Recovered 3 | . . . . . 2 . . . 1 . . . . . . Used . | . . . . . . . . . . . . . . . . Hacking Detections 30 | . . . . . 9 1 . 5 3 7 . . 3 . 2 Full Trace Events 2 | . . . . . . . . . . . . . . . 2 Feedback Events . | . . . . . . . . . . . . . . . . Feedback Blocked . | . . . . . . . . . . . . . . . . Robot Schematics Acquired . | . . . . . . . . . . . . . . . . Robots Built . | . . . . . . . . . . . . . . . . Authchips . | . . . . . . . . . . . . . . . . Time . | . . . . . . . . . . . . . . . . Total Robot Build Rating . | . . . . . . . . . . . . . . . . Part Schematics Acquired 12 | . . . . . 8 . . 1 2 1 . . . . . Parts Built 3 | . . . . . . . . 1 . 2 . . . . . Authchips . | . . . . . . . . . . . . . . . . Time 285 | . . . . . . . . 116 116 53 . . . . . Total Part Build Rating 15 | . . . . . . . . 3 . 12 . . . . . Part Studies Acquired 2 | . . . . . 2 . . . . . . . . . . Parts Repaired 2 | . . . . . 1 . . 1 . . . . . . . Time 88 | . . . . . 38 . . 50 . . . . . . . Parts Recycled . | . . . . . . . . . . . . . . . . Recycled Matter . | . . . . . . . . . . . . . . . . Retrieved Matter . | . . . . . . . . . . . . . . . . Retrieved Components . | . . . . . . . . . . . . . . . . Parts Scanalyzed 11 | . . . . . 7 . . . 3 1 . . . . . Part Schematics Acquired 10 | . . . . . 7 . . . 2 1 . . . . . Parts Damaged 1 | . . . . . 1 . . . . . . . . . . Bothacking | -11 -10 -10 -10 -9 -8 -7 -7 -6 -5 -4 -3 -3 -2 -2 -1 ------------ Run | Yrd Mat Min Exi Min Mat Fac DSF Fac Fac Fac Res Tes Res Qua Acc Used RIF Installer . | . . . . . . . . . . . . . . . . Robots Hacked . | . . . . . . . . . . . . . . . . Non-combat . | . . . . . . . . . . . . . . . . Combat . | . . . . . . . . . . . . . . . . Robot Hacks Applied . | . . . . . . . . . . . . . . . . Relay Couplers Released . | . . . . . . . . . . . . . . . . Fabnet Peak Effective % . | . . . . . . . . . . . . . . . . Robots Rewired . | . . . . . . . . . . . . . . . . Allies Hacked . | . . . . . . . . . . . . . . . . Hacks Repelled . | . . . . . . . . . . . . . . . . Allies | -11 -10 -10 -10 -9 -8 -7 -7 -6 -5 -4 -3 -3 -2 -2 -1 -------- Run | Yrd Mat Min Exi Min Mat Fac DSF Fac Fac Fac Res Tes Res Qua Acc Total Allies 5 | . . 5 . . . . . . . . . . . . . Largest Group 5 | . . 5 5 3 . . . . . . . . . . . Highest-Rated Group 78 | . . 78 78 40 . . . . . . . . . . . Highest-Rated Ally 31 | . . 31 31 16 . . . . . . . . . . . Total Orders 3 | . . . . . . . . 3 . . . . . . . EXPLORE 3 | . . . . . . . . 3 . . . . . . . Ally Attacks 24 | . . 10 . 14 . . . . . . . . . . . Total Damage 236 | . . 141 . 95 . . . . . . . . . . . Kills 4 | . . 2 . 2 . . . . . . . . . . . Allies Corrupted . | . . . . . . . . . . . . . . . . Allies Melted . | . . . . . . . . . . . . . . . . Intel | -11 -10 -10 -10 -9 -8 -7 -7 -6 -5 -4 -3 -3 -2 -2 -1 ------- Run | Yrd Mat Min Exi Min Mat Fac DSF Fac Fac Fac Res Tes Res Qua Acc Active Infowar (turns) 4591 | . . . . . 2026 17 72 715 548 543 138 63 185 44 240 Optics 1171 | . . . . . . . . . . 501 138 63 185 44 240 T.N.C. 4591 | . . . . . 2026 17 72 715 548 543 138 63 185 44 240 Machine Analysis 753 | . . . . . . . . . . 83 138 63 185 44 240 Jamming 651 | . . . . . . . . . . . 119 63 185 44 240 Robot Analysis Total 1 | . . . . . . . . . 1 . . . . . . Derelict Logs Recovered 4 | . . 3 . 1 . . . . . . . . . . . Drone Launches 4 | . . . . . . . . 4 . . . . . . . Drone Recoveries . | . . . . . . . . . . . . . . . . Exploration | -11 -10 -10 -10 -9 -8 -7 -7 -6 -5 -4 -3 -3 -2 -2 -1 ------------- Run | Yrd Mat Min Exi Min Mat Fac DSF Fac Fac Fac Res Tes Res Qua Acc Turns Passed 9583 | 159 154 1626 1224 1109 2746 17 72 715 548 543 138 63 185 44 240 Spaces Moved 8708 | 92 84 893 764 644 1299 5 181 877 901 1136 357 198 511 123 643 Core 3 | 2 . . . . 1 . . . . . . . . . . Treads 3773 | 90 84 893 764 644 1298 . . . . . . . . . . Legs . | . . . . . . . . . . . . . . . . Wheels . | . . . . . . . . . . . . . . . . Hover . | . . . . . . . . . . . . . . . . Flight 4932 | . . . . . . 5 181 877 901 1136 357 198 511 123 643 Fastest Speed 18 | 50 160 160 160 160 156 24 21 24 18 18 24 26 19 36 28 Average Speed 84 | 157 160 160 160 160 160 24 23 27 24 23 26 27 30 36 28 Slowest Speed 900 | 160 160 160 160 160 900 24 24 120 25 33 30 109 122 36 33 Overloaded Moves . | . . . . . . . . . . . . . . . . Propulsion Burnouts . | . . . . . . . . . . . . . . . . Robots Hopped 54 | . . . . . . . . 7 8 24 3 1 4 4 3 Potential Cave-ins . | . . . . . . . . . . . . . . . . Cave-ins Triggered . | . . . . . . . . . . . . . . . . Exploration Rate (%) 37 | 4 15 99 93 71 64 1 94 22 26 26 9 30 13 18 12 Regions Visited 15 Branch Regions 5 Pre-discovered Areas 3 | . . 1 1 1 . . . . . . . . . . . Known Exits Taken 14 | 1 1 1 1 1 1 1 . 1 1 1 1 1 1 1 . Unknown Exits Taken . | . . . . . . . . . . . . . . . . Scrap Searched 2 | . . 1 . 1 . . . . . . . . . . . Spaces Dug 7 | . . . . . . . . . . . . 2 . . 5 Terrain Destroyed 7 | . . . . . . . . . . . . 2 . . 5 Melee 7 | . . . . . . . . . . . . 2 . . 5 Projectile . | . . . . . . . . . . . . . . . . AOE . | . . . . . . . . . . . . . . . . Terrain Rammed . | . . . . . . . . . . . . . . . . Walls Destroyed . | . . . . . . . . . . . . . . . . Machines Disabled . | . . . . . . . . . . . . . . . . Actions | -11 -10 -10 -10 -9 -8 -7 -7 -6 -5 -4 -3 -3 -2 -2 -1 --------- Run | Yrd Mat Min Exi Min Mat Fac DSF Fac Fac Fac Res Tes Res Qua Acc Total 10514 | 103 91 1082 767 718 1752 26 209 1313 1179 1359 385 202 536 118 674 Wait 1304 | . 1 164 . 65 224 . . 403 235 191 4 2 . . 15 Move 8587 | 91 83 892 763 643 1298 4 180 862 884 1090 350 195 502 114 636 Hop 51 | . . . . . . . . 7 8 21 3 1 4 4 3 Pick Up 70 | 6 . 9 1 5 23 . 6 . 6 3 1 . 9 . 1 Fast Attach 68 | 6 . 3 . 1 10 . 2 14 5 17 5 . 4 . 1 Attach 37 | . . . . . 4 10 1 1 8 1 2 2 6 . 2 Detach 9 | . . . . . 1 1 . 2 3 . . . . . 2 Swap 30 | . . . 1 . 12 . 2 1 . 7 6 . . . 1 Drop 100 | . . 6 2 1 31 11 6 7 4 12 8 . 10 . 2 Fire 171 | . 7 6 . 3 149 . . . . . . . . . 6 Melee 73 | . . . . . . . 1 15 26 17 6 2 1 . 5 Ram . | . . . . . . . . . . . . . . . . Kick . | . . . . . . . . . . . . . . . . Crush 2 | . . 2 . . . . . . . . . . . . . Escape Stasis 11 | . . . . . . . 11 . . . . . . . . Rewire . | . . . . . . . . . . . . . . . . Trap . | . . . . . . . . . . . . . . . . Miscellaneous 1 | . . . . . . . . 1 . . . . . . . Route ------- -11/Scrapyard -10/Materials (discovered 2 exits: *Mat / *Min) -10/Mines (discovered 4 exits: *Mat x2 / *Exi / *Sub) -10/Exiles (discovered 2 exits: *Min x2) -9/Mines -8/Materials (discovered 2 exits: *Fac x2) -7/Factory -7/DSF -6/Factory (discovered 3 exits: *Fac / Low x2) -5/Factory -4/Factory (discovered 2 exits: *Res / *Ext) -3/Research -3/Testing -2/Research -2/Quarantine -1/Access To Epsilon Eridani History --------- Turn | Location | Event 37 | -11/Scrapyard | Identified exit to Materials 37 | -11/Scrapyard | Discovered exit to Materials (range 15) 160 | -11/Scrapyard | Entered Materials 160 | -10/Materials | Evolved 1 slot: Propulsion x1 224 | -10/Materials | Identified exit to Mines 224 | -10/Materials | Discovered exit to Mines (range 16) 298 | -10/Materials | Identified exit to Materials 298 | -10/Materials | Discovered exit to Materials (range 16) 313 | -10/Materials | Build established: Hacker-Mutant 314 | -10/Materials | Entered Mines 430 | -10/Mines | Discovered exit to Materials (range 4) 528 | -10/Mines | Learned Materials interactive machine intel 588 | -10/Mines | Found a hidden stash of uninstalled traps 731 | -10/Mines | Learned Materials emergency access door positions 774 | -10/Mines | Assisted by bots powering up and referring to "LRC-V3" 878 | -10/Mines | Met a Derelict shopkeep closing up shop 1059 | -10/Mines | Learned location of Zion (-7) 1289 | -10/Mines | Discovered exit to Materials (range 9) 1729 | -10/Mines | Identified exit to Subcaves 1729 | -10/Mines | Discovered exit to Subcaves (range 6) 1903 | -10/Mines | Deemed a non-threat by the Exiles lab entrance 1903 | -10/Mines | Identified exit to Exiles 1903 | -10/Mines | Discovered exit to Exiles (range 5) 1940 | -10/Mines | Entered Exiles 1940 | -10/Exiles | Accompanied by 5 allies 1966 | -10/Exiles | Identified exit to Mines 1966 | -10/Exiles | Discovered exit to Mines (range 15) 1970 | -10/Exiles | Led the pair of lost Derelicts to a safe place 1988 | -10/Exiles | Met 8R-AWN 2011 | -10/Exiles | Met EX-HEX 2115 | -10/Exiles | Met EX-DEC 2141 | -10/Exiles | Visited The Gauntlet 2400 | -10/Exiles | Discovered exit to Mines (range 14) 2555 | -10/Exiles | Met EX-BIN 2793 | -10/Exiles | Aligned with FarCom system 2795 | -10/Exiles | Given EX-Vault access code 2840 | -10/Exiles | Opened EX-Vault 2853 | -10/Exiles | Found YOLO Cannon 2887 | -10/Exiles | Warned to stay clear of 0b10 Research branches 3164 | -10/Exiles | Left Exiles lab with YOLO Cannon 3164 | -10/Exiles | Entered Mines 3164 | -9/Mines | Accompanied by 3 allies 3291 | -9/Mines | Identified exit to Materials 3291 | -9/Mines | Discovered exit to Materials (range 8) 3723 | -9/Mines | Assembled infested the area 4273 | -9/Mines | Entered Materials 4273 | -8/Materials | Evolved 4 slots: Propulsion x2, Utility x2 4275 | -8/Materials | Loaded intel: 19 interactive machine locations 5459 | -8/Materials | Identified exit to Factory 5459 | -8/Materials | Discovered exit to Factory (range 12) 6222 | -8/Materials | Discovered exit to Factory (range 15) 6267 | -8/Materials | Repaired Broken Imp. VTOL Module 7019 | -8/Materials | Entered Factory 7019 | -7/Factory | Evolved 2 slots: Propulsion x1, Utility x1 7036 | -7/Factory | Identified exit to DSF 7036 | -7/Factory | Entered DSF 7068 | -7/DSF | Additional patrols routed to DSF 7074 | -7/DSF | Identified exit to Factory 7074 | -7/DSF | Discovered exit to Factory (range 16) 7108 | -7/DSF | Entered Factory 7108 | -6/Factory | Evolved 2 slots: Power x1, Utility x1 7136 | -6/Factory | Identified exit to Lower Caves 7453 | -6/Factory | Fabricated Imp. VTOL Module (x1) 7629 | -6/Factory | Build established: Hacker-Sprinter 7758 | -6/Factory | Repaired Nuclear Pulse Thruster 7769 | -6/Factory | Identified exit to Factory 7769 | -6/Factory | Discovered exit to Factory (range 12) 7823 | -6/Factory | Entered another Factory area 7823 | -5/Factory | Evolved 2 slots: Propulsion x1, Utility x1 7949 | -5/Factory | Destroyed 7 combat bots 8359 | -5/Factory | Identified exit to Factory 8359 | -5/Factory | Discovered exit to Factory (range 16) 8371 | -5/Factory | Entered another Factory area 8371 | -4/Factory | Evolved 2 slots: Propulsion x1, Utility x1 8650 | -4/Factory | Identified exit to Extension 8650 | -4/Factory | Discovered exit to Extension (range 5) 8676 | -4/Factory | Build established: Hacker-Scout 8718 | -4/Factory | Fabricated Field Propulsion Drive (x2) 8741 | -4/Factory | Spotted B-86 Titan 8765 | -4/Factory | Identified exit to Research 8765 | -4/Factory | Discovered exit to Research (range 22) 8871 | -4/Factory | Search patrols dispatched 8914 | -4/Factory | Entered Research 8914 | -3/Research | Evolved 2 slots: Utility x2 9011 | -3/Research | Found Prototype Device 9011 | -3/Research | Identified Adv. Kinecellerator 9048 | -3/Research | Identified exit to Testing 9048 | -3/Research | Discovered exit to Testing (range 8) 9052 | -3/Research | Entered Testing 9053 | -3/Testing | Maximum security lockdown engaged 9108 | -3/Testing | Identified exit to Research 9108 | -3/Testing | Discovered exit to Research (range 14) 9115 | -3/Testing | Entered Research 9115 | -2/Research | Evolved 2 slots: Utility x2 9145 | -2/Research | Lost 5 parts (4n1u) 9225 | -2/Research | Build established: Hacker-Ninja 9230 | -2/Research | Unchained authorized (DW-4LL) 9270 | -2/Research | Exiles provided nearest exit location to -2/Quarantine 9300 | -2/Research | Entered Quarantine 9301 | -2/Quarantine | Maximum security lockdown engaged 9339 | -2/Quarantine | Identified exit to Access 9339 | -2/Quarantine | Discovered exit to Access (range 11) 9344 | -2/Quarantine | Entered Access 9344 | -1/Access | Evolved 2 slots: Propulsion x2 9410 | -1/Access | Spotted B-99 Colossus 9555 | -1/Access | Identified exit to Surface 9555 | -1/Access | Discovered exit to Surface (range 13) 9567 | -1/Access | Spotted B-99 Colossus 9571 | -1/Access | Destroyed B-99 Colossus 9577 | -1/Access | Spotted B-99 Colossus 9578 | -1/Access | Destroyed B-99 Colossus 9584 | *** | Escaped! Last Messages --------------- 09568_ Slug penetrates Sealed Barrier. 09571_ B-99 Colossus suffers critical hit (Meltdown). 09572_ Slug penetrates Main Access Shell. 09574_ W-44 Eye distress signal jammed. 09574_ Slug penetrates Sealed Barrier. 09575_ W-44 Eye distress signal jammed. [Achievement: Total Silence] 09575_ Slug penetrates Sealed Barrier. 09576_ W-44 Eye distress signal jammed. 09577_ Slug penetrates Sealed Heavy Doors. 09578_ B-99 Colossus suffers critical hit (Meltdown). 09578_ Adv. Cooling System melted. 09578_ Prototype Ballistic Gun melted. 09578_ Adv. Cooling System melted. 09578_ Slug penetrates Sealed Barrier. 09578_ Cesium-ion Thruster+ destroyed. 09578_ Slug penetrates Main Access Shell. 09579_ Slug penetrates Sealed Barrier. [Achievement: This Is Interesting...] [Achievement: Epsilon Run] Map ----- +----------------------------------------------------+ | ??????????????????????# ??????????????????????? | | ??????????????????????# ??????????????????????? | | ??????????????????????# ??????????????????????? | | ??????????????????????# ????????????????????### | | ??????????????????????# ?????????############"# | | ??????????????????????# ?????????# # | | ??????????????????????# ?????????# # | | ??????????????????????# ?????????# " # | | ??????????????????????# ?????????# """" # | | ???????????????????#### ####?????# """"" # | | ???????????????????# #?????# """"" + | | ???????????????????# #?????# """" # | | ???????????????????# #?????# " + | | ???????????????????# *! !!* #?????# # | | ???????????????????#!%[ !%! #?????# # | | ????????????????????!= ! #?????# # | | ?????????????????????? #?????# # | | ???????????????????????? #?????#########"#### | | ?????????????????????????" #?????????????# #??? | | ????????????????????????"" #???????????### ##?? | | ???????????????????#""""" #???????????#= !### | | ???????????????????# #???????????# | | ???????????????????# """" #???????????# " % | | ???????????????????#??" #???????????# ### | | ??????????????????????" "" #???????????## ##?? | | ???????????????????#??" "@ #????????????# #??? | | ???????????????????# ?" " #????????????# #??? | | ???????????????????# " #????????????# #??? | | ???????????????????# #????????????# #?? | | ???????????????????# #????????????# #? | | ???????????????????"""""" """????????????# # | | ???????????????????#"" #?????"??????# # | | ???????????????????#"" #????"""?????# / | | ???????????????????#"" #?????"""????# # | | ???????????????????#T #??????"?????# #?? | | ????????????w??????#"" #?# ?????????# #??? | | ???????????????????#"" hh#?? ????????# #??? | | ??????????# #######"" #####+######## ###+ | | ??????????# Y | | ??????????# w | | ??????????####+############################# #### | | ???????????????????????????????????????????# #??? | | ???????????????????????????????????????????# #??? | | ???????????????????????????????????????????# #??? | | ??????????????????????????????###??????????# #??? | | ??????????????????????????????# ????????# #??? | | ??????????????????????????????# ??????# #??? | | ??????????????????????????????# ????# #??? | | ??????????????????????????????# ??# #??? | | ??????????????????????????????# # #??? | +----------------------------------------------------+ Best States ------------- Heat Dissipation 71 Energy Generation 37 Energy Capacity 340 Matter Stores 300 Matter Capacity 300 Sight Range 22 Terrain Scan Density 110 Jamming Range 14 Armor Coverage 600 Resistance: KI 35 Resistance: TH 35 Resistance: EX 35 Resistance: EM 60 Resistance: I 35 Resistance: S 35 Resistance: P 35 Evasion (%) 73 Targeting Accuracy 11 Melee Accuracy 6 Recoil Reduction 5 Offensive Hacking 20 Defensive Hacking 14 Item Schematics ----------------- Nuclear Core | -8/Materials | Hacked Enh. Autogun | -8/Materials | Scanalyzed Imp. VTOL Module | -8/Materials | Scanalyzed Sml. Storage Unit | -8/Materials | Scanalyzed Imp. Light Armor Plating | -8/Materials | Scanalyzed Tractor Beam | -8/Materials | Scanalyzed Hcp. Matter Pod | -8/Materials | Scanalyzed Gauss Rifle | -8/Materials | Scanalyzed Neutrino Core | -6/Factory | Hacked Field Propulsion Drive | -5/Factory | Scanalyzed Scythe | -5/Factory | Scanalyzed Power Sword | -4/Factory | Scanalyzed Robot Schematics ------------------ None Fabricated ------------ Imp. VTOL Module | x1 | -6/Factory Field Propulsion Drive | x2 | -4/Factory Repaired ---------- Imp. VTOL Module | 99% | -8/Materials | Broken Nuclear Pulse Thruster | 10% | -6/Factory Studied --------- Cesium-ion Thruster | -8/Materials | Hacked Nuclear Core | -8/Materials | Hacked Alien Tech Used ----------------- None Achievements -------------- Epsilon Run For Science! Hornet's Nest Into The Breach Origins Sixth Sense Suspicious The Better Part Of Valor This Is Interesting... Total Silence Challenges ------------ None Game ------ Seed MicrodissipatorBombBrace Manual? 0 Play Time 02:12:49 Cumulative 154.3 hours Start 2026.09.08 @ 23:41:00 End 2026.09.09 @ 02:02:09 Sessions 1 Manual Loads 0 Difficulty Explorer Special Mode None Game No. 9 Rogue 0 Adventurer 0 Explorer 9 Win Type 0 Total 2 Types 1/0/0/0/0/0/0/0/0/1 Lore% 26 Gallery% 32 Achievement% 35 Wizard Run 0 Options --------- Layout 0 ASCII 0 Keyboard 0 Movement Arrows Keybinds 0 Fullscreen 1 Font 18/SmallcapsGlow Map View 76x50 Zoom Use 0% Tactical HUD 1 Map Filters NONE Filters NONE Steam 1 RUN: 0eb89906-2282-45a1-8fe3-ab17caac98bc